{"text_format":"3","workbook":"xlsx","n_sheets":3,"sheets":["Лист1","Лист2","Лист3"],"not_rendered":{"images":1,"external_links":1},"read":"whole","date_system":"1900"}

{"sheet":"Лист1","index":0,"n_rows":22,"n_cols":25,"rows_kept":22}
["КОД","Вариант","Пол","1 (1 балл)","2 (1 балл)","3 (1 балл)","4 (1 балл)","5 (1 балл)","6 (1 балл)","7 (1 балл)","8 (1 балл)","9 (1 балл)","10 (1 балл)","11 (1 балл)","12 (1 балл)","13 (2 балла)","14 (2 балла)","15 (2 балла)","Сумма","Специальность/профессия","Отметка в аттестате по математике (алгебре)","Отметка в аттестате по русскому языку","Отметка в аттестате по истории (истории России)","Отметка в аттестате по обществознанию","За счет бюджетных ассигнований / по договорам на оказание платных образовательных услуг"]
[10101,42925,"м",1,1,0,1,0,0,1,0,0,1,1,1,2,0,2,{"$f":"IF(LEN(D2)>0, SUM(D2:R2), \"\")","v":11},"27.02.07 Управление качеством продукции, процессов и услуг (по отраслям)",3,3,3,3,"За счет бюджетных ассигнований"]
[10102,42925,"ж",1,1,0,1,0,0,0,0,0,1,1,1,0,0,2,8,"27.02.07 Управление качеством продукции, процессов и услуг (по отраслям)",4,4,3,4,"За счет бюджетных ассигнований"]
[10103,80662,"м",1,1,0,0,0,1,1,1,0,0,1,1,2,0,0,9,"27.02.07 Управление качеством продукции, процессов и услуг (по отраслям)",4,4,4,4,"За счет бюджетных ассигнований"]
[10104,42925,"ж",1,1,0,1,0,1,1,1,1,1,0,1,2,0,2,13,"27.02.07 Управление качеством продукции, процессов и услуг (по отраслям)",4,5,4,4,"За счет бюджетных ассигнований"]
[10105,80662,"ж",1,1,0,0,0,1,1,1,1,1,1,1,2,0,2,13,"27.02.07 Управление качеством продукции, процессов и услуг (по отраслям)",3,5,4,4,"За счет бюджетных ассигнований"]
[10106,42925,"ж",1,1,1,1,0,1,1,0,1,1,1,0,2,0,0,11,"27.02.07 Управление качеством продукции, процессов и услуг (по отраслям)",3,4,4,4,"За счет бюджетных ассигнований"]
[10107,42925,"ж",1,1,0,1,0,1,1,0,1,1,1,1,2,0,2,13,"27.02.07 Управление качеством продукции, процессов и услуг (по отраслям)",4,4,4,4,"За счет бюджетных ассигнований"]
[10108,80662,"м",1,1,0,0,0,1,1,1,1,0,0,1,2,0,1,10,"27.02.07 Управление качеством продукции, процессов и услуг (по отраслям)",3,4,4,4,"За счет бюджетных ассигнований"]
[10109,42925,"ж",1,1,0,0,0,1,0,1,1,0,0,1,0,0,2,8,"27.02.07 Управление качеством продукции, процессов и услуг (по отраслям)",3,4,4,4,"За счет бюджетных ассигнований"]
[10110,42925,"м",1,1,0,1,0,1,1,0,0,1,1,1,2,0,2,12,"27.02.07 Управление качеством продукции, процессов и услуг (по отраслям)",3,4,4,4,"За счет бюджетных ассигнований"]
[10111,80662,"ж",1,1,0,0,0,1,1,1,0,1,1,1,2,0,0,10,"27.02.07 Управление качеством продукции, процессов и услуг (по отраслям)",3,4,4,4,"За счет бюджетных ассигнований"]
[10112,42925,"м",1,1,1,1,1,1,1,1,0,1,1,1,0,0,0,11,"27.02.07 Управление качеством продукции, процессов и услуг (по отраслям)",4,4,4,4,"За счет бюджетных ассигнований"]
[10113,80662,"м",1,1,0,1,0,1,1,0,0,0,0,1,2,0,2,10,"27.02.07 Управление качеством продукции, процессов и услуг (по отраслям)",3,4,4,3,"За счет бюджетных ассигнований"]
[10114,42925,"м",1,1,0,1,0,1,1,1,0,1,1,1,2,0,2,13,"27.02.07 Управление качеством продукции, процессов и услуг (по отраслям)",3,4,4,4,"За счет бюджетных ассигнований"]
[10115,80662,"ж",1,1,0,0,0,1,1,1,0,0,0,0,2,1,2,10,"27.02.07 Управление качеством продукции, процессов и услуг (по отраслям)",3,4,4,3,"За счет бюджетных ассигнований"]
[10116,42925,"м",1,1,0,1,0,1,0,0,0,0,1,0,0,0,0,5,"27.02.07 Управление качеством продукции, процессов и услуг (по отраслям)",3,4,3,3,"За счет бюджетных ассигнований"]
[10117,80662,"ж",1,1,0,0,0,1,1,1,0,0,0,1,1,0,1,8,"27.02.07 Управление качеством продукции, процессов и услуг (по отраслям)",4,4,4,4,"За счет бюджетных ассигнований"]
[10118,42925,"м",1,1,0,1,0,0,1,0,1,1,1,1,2,0,0,10,"27.02.07 Управление качеством продукции, процессов и услуг (по отраслям)",3,3,4,3,"За счет бюджетных ассигнований"]
[10119,80662,"ж",1,1,0,0,0,1,1,1,1,1,1,1,2,0,1,12,"27.02.07 Управление качеством продукции, процессов и услуг (по отраслям)",3,5,5,4,"За счет бюджетных ассигнований"]
[10120,80662,"м",1,0,0,1,0,1,1,1,0,0,1,1,2,0,0,9,"27.02.07 Управление качеством продукции, процессов и услуг (по отраслям)",3,3,3,3,"За счет бюджетных ассигнований"]
[10121,80662,"ж",1,1,0,0,0,1,0,1,1,1,1,1,2,0,2,12,"27.02.07 Управление качеством продукции, процессов и услуг (по отраслям)",3,4,4,4,"За счет бюджетных ассигнований"]

{"sheet":"Лист2","index":1,"n_rows":0,"n_cols":0,"rows_kept":0}

{"sheet":"Лист3","index":2,"n_rows":0,"n_cols":0,"rows_kept":0}